[Event "2nd Namma Bengaluru Open-B 2025"]
[Site "Bengaluru"]
[Date "2025.04.12"]
[Round "6.8"]
[White "Alaukik Sinha"]
[Black "Gokul G"]
[Result "0-1"]
[Annotator "NA RC"]
[ECO "B31"]
[WhiteElo "1787"]
[BlackElo "1858"]
[PlyCount "174"]
[EventDate "2025.04.10"]
[EventType "swiss"]
[EventCountry "IND"]
[SourceTitle "playchess.com"]
[Source "ChessBase"]
[SourceQuality "1"]
[TimeControl "3600+30"]

1. e4 {[%emt 0:00:12]} c5 {[%emt 0:00:01]} 2. Nf3 {[%emt 0:00:07]} Nc6 {[%emt 0:00:03]} 3. Bb5 {[%emt 0:00:09]} g6 {[%emt 0:00:05]} 4. O-O {[%emt 0:00:09]} Bg7 {[%emt 0:00:01]} 5. Re1 {[%emt 0:00:16]} e5 {[%emt 0:01:32]} 6. c3 {[%emt 0:01:06]} Nge7 {[%emt 0:00:12]} 7. d3 {[%emt 0:05:26]} O-O {[%emt 0:00:30]} 8. h3 {[%emt 0:02:19] B31: Sicilian: 2...Nc6 3 Bb5 g6.} d6 {[%emt 0:00:59]} 9. Na3 {[%emt 0:05:02]} h6 {[%emt 0:03:15]} 10. Bd2 {[%emt 0:07:28]} f5 {[%emt 0:01:35]} 11. exf5 {[%emt 0:01:22]} Bxf5 {[%emt 0:01:14]} 12. Be3 {[%emt 0:01:33]} g5 {[%emt 0:03:46]} 13. Qb3+ {[%emt 0:05:25]} Kh7 {[%emt 0:00:40]} 14. Bxg5 {[%emt 0:03:52]} hxg5 {[%emt 0:05:30]} 15. Nxg5+ {[%emt 0:00:23]} Kg6 {[%emt 0:00:13]} 16. h4 {[%emt 0:02:07]} Bf6 {[%emt 0:03:09]} 17. Re3 {[%emt 0:01:47]} Bxg5 {[%emt 0:00:52]} 18. Rg3 {[%emt 0:02:36]} Kf6 {[%emt 0:01:51]} 19. hxg5+ {[%emt 0:00:31]} Kg6 {[%emt 0:00:18]} 20. Rf1 {[%emt 0:07:55]} Rh8 {[%emt 0:05:17]} 21. f4 {[%emt 0:06:09]} Qg8 {[%emt 0:07:05]} 22. Nc4 {[%emt 0:04:18]} Be6 {[%emt 0:04:20]} 23. Bxc6 {[%emt 0:02:42]} bxc6 {[%emt 0:00:12]} 24. fxe5 {[%emt 0:01:39]} Nf5 {[%emt 0:00:50]} 25. Rgf3 {[%emt 0:04:04]} Rh4 {[%emt 0:03:17]} 26. exd6 {[%emt 0:02:23]} Qh8 {[%emt 0:00:03]} 27. Qb7 {[%emt 0:02:26]} Rh1+ {[%emt 0:04:32]} 28. Kf2 {[%emt 0:00:01]} Qh4+ {[%emt 0:00:01]} 29. Ke2 {[%emt 0:00:19]} Bxc4 {[%emt 0:00:05]} 30. Qxa8 {[%emt 0:01:05]} Rxf1 {[%emt 0:06:02]} 31. Kxf1 {[%emt 0:00:30]} Qh1+ {[%emt 0:00:44]} 32. Kf2 {[%emt 0:00:07]} Qh4+ {[%emt 0:00:03]} 33. Ke2 {[%emt 0:00:26]} Qxg5 {[%emt 0:03:09]} 34. Qe8+ {[%emt 0:00:54]} Bf7 {[%emt 0:00:19]} 35. Qe4 {[%emt 0:00:31]} Qxg2+ {[%emt 0:00:48]} 36. Rf2 {[%emt 0:00:16]} Qxe4+ {[%emt 0:01:51]} 37. dxe4 {[%emt 0:00:01]} Bc4+ {[%emt 0:01:21]} 38. Kd1 {[%emt 0:00:33]} Nxd6 {[%emt 0:01:02]} 39. e5 {[%emt 0:00:45]} Nf5 {[%emt 0:00:29]} 40. b3 {[%emt 0:00:39]} Be6 {[%emt 0:00:08]} 41. Rf4 {[%emt 0:00:35]} c4 {[%emt 0:01:14]} 42. bxc4 {[%emt 0:00:34]} Bxc4 {[%emt 0:00:36]} 43. a3 {[%emt 0:00:37]} Kg5 {[%emt 0:00:42]} 44. Re4 {[%emt 0:00:26]} Bd5 {[%emt 0:00:02]} 45. Rb4 {[%emt 0:00:27]} a5 {[%emt 0:13:02]} 46. Rb7 {[%emt 0:00:38]} Ne3+ {[%emt 0:00:00]} 47. Kc1 {[%emt 0:00:34]} Nc4 {[%emt 0:00:00]} 48. Ra7 {[%emt 0:00:23]} Kf5 {[%emt 0:00:00]} 49. a4 {[%emt 0:00:27]} Kxe5 {[%emt 0:00:00]} 50. Kc2 {[%emt 0:00:31]} Be4+ {[%emt 0:00:00]} 51. Kb3 {[%emt 0:00:33]} Kd5 {[%emt 0:00:00]} 52. Rd7+ {[%emt 0:00:33]} Kc5 {[%emt 0:00:00]} 53. Rg7 {[%emt 0:00:30]} Bd5 {[%emt 0:00:00]} 54. Kc2 {[%emt 0:00:33]} Nd6 {[%emt 0:00:00]} 55. Ra7 {[%emt 0:00:25]} Kb6 {[%emt 0:00:00]} 56. Rd7 {[%emt 0:00:34]} Nb7 {[%emt 0:00:00]} 57. Rg7 {[%emt 0:00:33]} Nc5 {[%emt 0:00:00]} 58. Rg4 {[%emt 0:00:25]} Bb3+ {[%emt 0:00:00]} 59. Kb2 {[%emt 0:00:16]} Bxa4 {[%emt 0:00:00]} 60. Rd4 {[%emt 0:00:18]} Bb5 {[%emt 0:00:00]} 61. Ka3 {[%emt 0:00:31]} Ba6 {[%emt 0:00:00]} 62. Rh4 {[%emt 0:00:37]} Be2 {[%emt 0:00:00]} 63. Rh2 {[%emt 0:00:32]} Bf3 {[%emt 0:00:00]} 64. Rb2+ {[%emt 0:00:31]} Ka7 {[%emt 0:00:00]} 65. Rf2 {[%emt 0:00:28]} Bd5 {[%emt 0:00:00]} 66. Re2 {[%emt 0:00:47]} Kb6 {[%emt 0:00:00]} 67. Rb2+ {[%emt 0:00:18]} Bb3 {[%emt 0:00:00]} 68. Re2 {[%emt 0:00:45]} Kb5 {[%emt 0:00:00]} 69. Re5 {[%emt 0:00:27]} Bd5 {[%emt 0:00:00]} 70. Rh5 {[%emt 0:00:33]} Kc4 {[%emt 0:00:00]} 71. Rh3 {[%emt 0:00:17]} Be4 {[%emt 0:00:00]} 72. Rg3 {[%emt 0:00:35]} Bc2 {[%emt 0:00:00]} 73. Rg5 {[%emt 0:00:38]} a4 {[%emt 0:00:00]} 74. Rh5 {[%emt 0:00:28]} Nd3 {[%emt 0:00:00]} 75. Rh6 {[%emt 0:00:31]} c5 {[%emt 0:00:03]} 76. Rh2 {[%emt 0:00:25]} Kxc3 {[%emt 0:00:15]} 77. Ka2 {[%emt 0:00:07]} c4 {[%emt 0:00:43]} 78. Rh3 {[%emt 0:00:32]} Kb4 {[%emt 0:00:20]} 79. Rh2 {[%emt 0:00:36]} Bb3+ {[%emt 0:00:15]} 80. Ka1 {[%emt 0:00:14]} a3 {[%emt 0:00:18]} 81. Rh8 {[%emt 0:00:39]} Ne1 {[%emt 0:00:10]} 82. Rb8+ {[%emt 0:00:56]} Kc3 {[%emt 0:00:05]} 83. Ra8 {[%emt 0:00:07]} a2 {[%emt 0:00:21]} 84. Rxa2 {[%emt 0:00:11]} Bxa2 {[%emt 0:00:05]} 85. Kxa2 {[%emt 0:00:05]} Kd2 {[%emt 0:00:04]} 86. Kb1 {[%emt 0:00:04]} c3 {[%emt 0:00:02]} 87. Ka1 {[%emt 0:00:04]} c2 {[%emt 0:00:04]} 0-1

[Event "2nd Namma Bengaluru Open-B 2025"]
[Site "Bengaluru"]
[Date "2025.04.12"]
[Round "6.9"]
[White "Niranjan J Warrier"]
[Black "Vivaan Sachdev"]
[Result "1/2-1/2"]
[Annotator "NA RC"]
[ECO "D97"]
[WhiteElo "1841"]
[BlackElo "1782"]
[PlyCount "32"]
[EventDate "2025.04.10"]
[EventType "swiss"]
[EventCountry "IND"]
[SourceTitle "playchess.com"]
[Source "ChessBase"]
[SourceQuality "1"]
[TimeControl "3600+30"]

1. d4 {[%emt 1:01:00]} Nf6 {[%emt 1:01:00]} 2. c4 {[%emt 0:00:30]} g6 {[%emt 0:00:30]} 3. Nc3 {[%emt 0:00:30]} d5 {[%emt 0:00:30]} 4. Nf3 {[%emt 0:00:30]} Bg7 {[%emt 0:00:30]} 5. Qb3 {[%emt 0:00:30]} dxc4 6. Qxc4 {[%emt 0:00:30]} O-O {[%emt 0:01:00]} 7. e4 {[%emt 0:00:30]} Nc6 {[%emt 0:00:30]} 8. Be3 {[%emt 0:00:30]} e5 {[%emt 0:00:30]} 9. d5 {[%emt 0:00:30]} Nd4 {[%emt 0:00:30]} 10. Nxd4 {[%emt 0:00:30]} exd4 {[%emt 0:00:30]} 11. Qxd4 {[%emt 0:00:30]} c6 {[%emt 0:00:30]} 12. Qc4 {[%emt 0:00:30]} b5 {[%emt 0:00:30]} 13. Qxc6 {[%emt 0:00:30]} Bd7 {[%emt 0:00:30]} 14. Qd6 {[%emt 0:00:30]} Re8 {[%emt 0:00:30]} 15. e5 {[%emt 0:00:30]} b4 {[%emt 0:00:30]} 16. Qxb4 {[%emt 0:00:30]} Rxe5 {[%emt 0:00:30]} 1/2-1/2

[Event "2nd Namma Bengaluru Open-B 2025"]
[Site "Bengaluru"]
[Date "2025.04.12"]
[Round "6.9"]
[White "Niranjan J Warrier"]
[Black "Vivaan Sachdev"]
[Result "*"]
[Annotator "NA"]
[ECO "D97"]
[WhiteElo "1841"]
[BlackElo "1782"]
[PlyCount "72"]
[EventDate "2025.04.10"]
[EventType "swiss"]
[EventCountry "IND"]
[SourceTitle "playchess.com"]
[Source "ChessBase"]
[SourceQuality "1"]
[TimeControl "3600+30"]

1. d4 {[%emt 1:01:00]} Nf6 {[%emt 0:02:05]} 2. c4 {[%emt 0:00:00]} g6 {[%emt 0:00:05]} 3. Nc3 {[%emt 0:00:00]} d5 {[%emt 0:00:05]} 4. Nf3 {[%emt 0:00:00]} Bg7 {[%emt 0:00:05]} 5. Qb3 {[%emt 0:00:00]} dxc4 {[%emt 0:00:27]} 6. Qxc4 {[%emt 0:00:00]} O-O {[%emt 0:00:10]} 7. e4 {[%emt 0:00:00]} Nc6 {[%emt 0:00:10]} 8. Be2 {[%emt 0:00:00]} e5 {[%emt 0:00:06]} 9. d5 {[%emt 0:00:00]} Nd4 {[%emt 0:00:06]} 10. Nxd4 {[%emt 0:00:00]} exd4 {[%emt 0:00:04]} 11. Qxd4 {[%emt 0:00:00]} c6 {[%emt 0:00:11]} 12. Qc4 {[%emt 0:00:00]} b5 {[%emt 0:00:10]} 13. Qxc6 {[%emt 0:00:00]} Bd7 {[%emt 0:00:02]} 14. Qd6 {[%emt 0:00:00]} Re8 {[%emt 0:00:35]} 15. e5 {[%emt 0:00:00]} b4 {[%emt 0:00:58]} 16. Qxb4 {[%emt 0:00:00]} Rxe5 {[%emt 0:00:07]} 17. Be3 {[%emt 0:00:00]} Nxd5 {[%emt 0:03:03]} 18. Nxd5 {[%emt 0:00:00]} Rxd5 {[%emt 0:00:02]} 19. O-O {[%emt 0:00:00]} Rb8 {[%emt 0:13:24]} 20. Qe1 {[%emt 0:00:00]} Rxb2 {[%emt 0:11:32]} 21. Bf3 {[%emt 0:00:00]} Rd3 {[%emt 0:01:16]} 22. Be4 {[%emt 0:00:00]} Rd6 {[%emt 0:01:16]} 23. Rd1 {[%emt 0:00:00]} Bb5 {[%emt 0:05:04]} 24. Rxd6 {[%emt 0:00:00]} Qxd6 {[%emt 0:00:02]} 25. Qd1 {[%emt 0:00:00]} Qe7 {[%emt 0:01:40]} 26. Bd3 {[%emt 0:00:00]} Bxd3 {[%emt 0:00:27]} 27. Qxd3 {[%emt 0:00:00]} Rxa2 {[%emt 0:00:23]} 28. Rb1 {[%emt 0:00:00]} h5 {[%emt 0:03:49]} 29. g3 {[%emt 0:00:00]} a5 {[%emt 0:01:26]} 30. Qd5 {[%emt 0:04:27]} Qe6 {[%emt 0:02:32]} 31. Rb8+ {[%emt 0:01:23]} Kh7 {[%emt 0:01:26]} 32. Qxe6 {[%emt 0:00:21]} fxe6 {[%emt 0:00:02]} 33. Rb7 {[%emt 0:01:05]} e5 {[%emt 0:01:22]} 34. h4 {[%emt 0:03:14]} Kg8 {[%emt 0:02:19]} 35. Kg2 {[%emt 0:06:30]} a4 36. Kf3 a3 {[%emt 0:21:59]} *

[Event "2nd Namma Bengaluru Open-B 2025"]
[Site "Bengaluru"]
[Date "2025.04.12"]
[Round "6.10"]
[White "Vrishank Royadu"]
[Black "Ishan Warudkar"]
[Result "1/2-1/2"]
[Annotator "NA RC"]
[ECO "E91"]
[WhiteElo "1741"]
[BlackElo "1832"]
[PlyCount "134"]
[EventDate "2025.04.10"]
[EventType "swiss"]
[EventCountry "IND"]
[SourceTitle "playchess.com"]
[Source "ChessBase"]
[SourceQuality "1"]
[TimeControl "3600+30"]

1. d4 {[%emt 1:01:00]} Nf6 {[%emt 1:01:00]} 2. Nf3 {[%emt 0:00:30]} g6 3. c4 {[%emt 0:00:30]} Bg7 4. Nc3 {[%emt 0:00:30]} O-O {[%emt 0:01:30]} 5. e4 {[%emt 0:00:30]} d6 {[%emt 0:00:30]} 6. Be2 {[%emt 0:00:30]} Bg4 {[%emt 0:00:30]} 7. O-O {[%emt 0:00:30]} Nfd7 8. Be3 {[%emt 0:00:30]} Bxf3 {[%emt 0:01:00]} 9. Bxf3 {[%emt 0:00:30]} e5 {[%emt 0:00:30]} 10. Be2 {[%emt 0:00:30]} Nc6 {[%emt 0:00:30]} 11. d5 {[%emt 0:00:30]} Nd4 {[%emt 0:00:30]} 12. Qd2 {[%emt 0:00:30]} f5 {[%emt 0:00:30]} 13. f3 {[%emt 0:00:30]} Qe7 14. Rac1 {[%emt 0:00:30]} c5 {[%emt 0:01:00]} 15. dxc6 {[%emt 0:00:30]} bxc6 {[%emt 0:00:30]} 16. b4 {[%emt 0:00:30]} Rac8 {[%emt 0:00:30]} 17. Rb1 {[%emt 0:00:30]} Kh8 {[%emt 0:00:30]} 18. b5 {[%emt 0:00:30]} fxe4 {[%emt 0:00:30]} 19. fxe4 {[%emt 0:00:30]} cxb5 {[%emt 0:00:30]} 20. Nxb5 {[%emt 0:00:30]} Nc5 {[%emt 0:00:30]} 21. Nxd4 {[%emt 0:00:30]} exd4 {[%emt 0:00:30]} 22. Bxd4 {[%emt 0:00:30]} Qxe4 {[%emt 0:00:30]} 23. Bxg7+ {[%emt 0:00:30]} Kxg7 {[%emt 0:00:30]} 24. Qc3+ {[%emt 0:00:30]} Qe5 {[%emt 0:00:30]} 25. Qd2 {[%emt 0:00:30]} Rxf1+ {[%emt 0:00:30]} 26. Rxf1 {[%emt 0:00:30]} Rb8 {[%emt 0:00:30]} 27. Bf3 {[%emt 0:00:30]} Rb2 {[%emt 0:00:30]} 28. Qa5 {[%emt 0:00:30]} Qd4+ {[%emt 0:00:30]} 29. Kh1 {[%emt 0:00:30]} Nd3 {[%emt 0:00:30]} 30. h3 {[%emt 0:00:30]} Nf2+ {[%emt 0:00:30]} 31. Kh2 {[%emt 0:00:30]} Qf4+ {[%emt 0:00:30]} 32. Kg1 {[%emt 0:00:30]} Nxh3+ {[%emt 0:00:30]} 33. Kh1 {[%emt 0:00:30]} Nf2+ {[%emt 0:00:30]} 34. Kg1 {[%emt 0:00:30]} Qd4 {[%emt 0:00:30]} 35. Qc7+ {[%emt 0:00:30]} Kh6 {[%emt 0:00:30]} 36. Qe7 {[%emt 0:00:30]} Nh3+ {[%emt 0:00:30]} 37. Kh2 {[%emt 0:00:30]} Ng5 {[%emt 0:00:30]} 38. Qf8+ {[%emt 0:00:30]} Qg7 39. Qxd6 {[%emt 0:00:30]} Qf7 40. Qe5 {[%emt 0:00:30]} Qxf3 {[%emt 0:01:30]} 41. Qxg5+ {[%emt 0:00:30]} Kxg5 42. Rxf3 {[%emt 0:00:30]} Rxa2 {[%emt 0:01:00]} 43. Rf7 {[%emt 0:00:30]} h5 {[%emt 0:00:30]} 44. c5 Rc2 {[%emt 0:00:30]} 45. Rxa7 {[%emt 0:01:00]} Rxc5 {[%emt 0:00:30]} 46. Ra4 {[%emt 0:00:30]} Kf5 {[%emt 0:00:30]} 47. Rh4 {[%emt 0:00:30]} Re5 {[%emt 0:00:30]} 48. Rh3 {[%emt 0:00:30]} Re4 {[%emt 0:00:30]} 49. Rf3+ {[%emt 0:00:30]} Rf4 50. Ra3 {[%emt 0:00:30]} g5 {[%emt 0:01:00]} 51. Kg3 {[%emt 0:00:30]} Rg4+ {[%emt 0:00:30]} 52. Kh3 {[%emt 0:00:30]} Rb4 53. Rf3+ {[%emt 0:00:30]} Rf4 54. Ra3 {[%emt 0:00:30]} Kg6 55. Ra6+ {[%emt 0:00:30]} Rf6 {[%emt 0:02:00]} 56. Ra5 {[%emt 0:00:30]} h4 {[%emt 0:00:30]} 57. Ra3 {[%emt 0:00:30]} Kh5 58. Ra5 {[%emt 0:00:30]} Re6 {[%emt 0:01:00]} 59. Rb5 {[%emt 0:00:30]} Re3+ 60. Kh2 {[%emt 0:00:30]} Kg4 61. Rb4+ {[%emt 0:00:30]} Kf5 {[%emt 0:01:30]} 62. Rb5+ {[%emt 0:00:30]} Kf4 63. Rb4+ {[%emt 0:00:30]} Kf5 {[%emt 0:01:00]} 64. Rb5+ {[%emt 0:00:30]} Kf4 65. Rb4+ Kf5 66. Rb5+ Kf4 67. Rb4+ Ke5 $11 {[%emt 0:02:00]} 1/2-1/2